[Event "Live Chess"]
[Site "Chess.com"]
[Date "2023.05.21"]
[Round "-"]
[White "Argrath"]
[Black "Larchikov"]
[Result "0-1"]
[WhiteElo "1489"]
[BlackElo "2026"]
[TimeControl "300"]
[EndTime "1:34:09 PDT"]
[Termination "Larchikov won by resignation"]

1. e4 {[%clk 0:04:57.5]} 1... c5 {[%clk 0:04:53.2]} 2. Nf3 {[%clk 0:04:55.7]}
2... Nc6 {[%clk 0:04:51.2]} 3. d4 {[%clk 0:04:54.5]} 3... cxd4 {[%clk
0:04:49.1]} 4. Nxd4 {[%clk 0:04:53.6]} 4... g6 {[%clk 0:04:47.1]} 5. Nc3 {[%clk
0:04:49.3]} 5... Bg7 {[%clk 0:04:45.2]} 6. Be3 {[%clk 0:04:48]} 6... Nf6 {[%clk
0:04:42]} 7. f3 {[%clk 0:04:43.4]} 7... d6 {[%clk 0:04:40.8]} 8. Qd2 {[%clk
0:04:41.6]} 8... O-O {[%clk 0:04:38.2]} 9. O-O-O {[%clk 0:04:38.7]} 9... Nxd4
{[%clk 0:04:37.1]} 10. Bxd4 {[%clk 0:04:37.2]} 10... a6 {[%clk 0:04:33.5]} 11.
h4 {[%clk 0:04:35.9]} 11... b5 {[%clk 0:04:31.9]} 12. h5 {[%clk 0:04:24]} 12...
b4 {[%clk 0:03:53.2]} 13. Nd5 {[%clk 0:04:01.7]} 13... Nxd5 {[%clk 0:03:48]} 14.
Bxg7 {[%clk 0:03:47.4]} 14... Kxg7 {[%clk 0:03:42]} 15. exd5 {[%clk 0:03:45.1]}
15... Rh8 {[%clk 0:03:28]} 16. Qd4+ {[%clk 0:03:38.8]} 16... f6 {[%clk
0:03:25.5]} 17. Bd3 {[%clk 0:03:26.4]} 17... a5 {[%clk 0:03:22.5]} 18. Qg4
{[%clk 0:03:22.4]} 18... Bxg4 {[%clk 0:03:20.6]} 0-1

[Event "Live Chess"]
[Site "Chess.com"]
[Date "2023.05.21"]
[Round "-"]
[White "mliszewski"]
[Black "Leonid_Starozhilov"]
[Result "0-1"]
[WhiteElo "1863"]
[BlackElo "2661"]
[TimeControl "300"]
[EndTime "1:34:10 PDT"]
[Termination "Leonid_Starozhilov won by resignation"]

1. d4 {[%clk 0:04:58.1]} 1... g6 {[%clk 0:04:57.5]} 2. Nc3 {[%clk 0:04:55.9]}
2... Bg7 {[%clk 0:04:56.1]} 3. e4 {[%clk 0:04:54.3]} 3... d6 {[%clk 0:04:54.2]}
4. Bf4 {[%clk 0:04:53.4]} 4... Nc6 {[%clk 0:04:53.1]} 5. Nf3 {[%clk 0:04:50.8]}
5... Bg4 {[%clk 0:04:51.6]} 6. d5 {[%clk 0:04:44.5]} 6... Nd4 {[%clk 0:04:48.8]}
7. Be2 {[%clk 0:04:42.4]} 7... Nxe2 {[%clk 0:04:45.3]} 8. Qxe2 {[%clk
0:04:38.5]} 8... Nf6 {[%clk 0:04:45.2]} 9. O-O-O {[%clk 0:04:36.1]} 9... O-O
{[%clk 0:04:42.3]} 10. Qe3 {[%clk 0:04:34.5]} 10... Nh5 {[%clk 0:04:34.7]} 11.
Bh6 {[%clk 0:04:31.4]} 11... c6 {[%clk 0:04:30.4]} 12. Bxg7 {[%clk 0:04:30.2]}
12... Kxg7 {[%clk 0:04:24.4]} 13. h3 {[%clk 0:04:29.4]} 13... Bxf3 {[%clk
0:04:22.6]} 14. Qxf3 {[%clk 0:04:29.3]} 14... Qa5 {[%clk 0:04:21.5]} 15. g4
{[%clk 0:04:25.4]} 15... Nf6 {[%clk 0:04:17.6]} 16. h4 {[%clk 0:04:20.8]} 16...
cxd5 {[%clk 0:04:09]} 17. exd5 {[%clk 0:04:19.4]} 17... Rac8 {[%clk 0:04:08]}
18. h5 {[%clk 0:04:13]} 18... Rxc3 {[%clk 0:04:05.2]} 19. Qxc3 {[%clk
0:04:10.3]} 19... Qxc3 {[%clk 0:04:03.9]} 20. bxc3 {[%clk 0:04:09.2]} 20... Nxg4
{[%clk 0:04:02.9]} 21. hxg6 {[%clk 0:04:08.5]} 21... hxg6 {[%clk 0:04:01]} 22.
Rd2 {[%clk 0:04:00.6]} 22... Rc8 {[%clk 0:03:57.7]} 23. Kb2 {[%clk 0:03:58.3]}
23... Ne5 {[%clk 0:03:55.2]} 24. Kb3 {[%clk 0:03:48.7]} 24... b5 {[%clk
0:03:50.2]} 25. Rh4 {[%clk 0:03:41.2]} 25... Nf3 {[%clk 0:03:46.6]} 26. Rhd4
{[%clk 0:03:39.3]} 26... a6 {[%clk 0:03:42]} 27. R2d3 {[%clk 0:03:35.3]} 27...
Nxd4+ {[%clk 0:03:40.3]} 28. cxd4 {[%clk 0:03:34.9]} 28... Rc4 {[%clk
0:03:38.5]} 29. f4 {[%clk 0:03:31.3]} 29... Kf6 {[%clk 0:03:36.4]} 30. Re3
{[%clk 0:03:28.9]} 30... Rxd4 {[%clk 0:03:35]} 0-1

[Event "Live Chess"]
[Site "Chess.com"]
[Date "2023.05.21"]
[Round "-"]
[White "TheSmoulderingMaster"]
[Black "Duke_of_Bebington"]
[Result "1-0"]
[WhiteElo "1691"]
[BlackElo "1589"]
[TimeControl "300"]
[EndTime "1:34:35 PDT"]
[Termination "TheSmoulderingMaster won by checkmate"]

1. e4 {[%clk 0:04:58.4]} 1... e5 {[%clk 0:04:58.5]} 2. Nf3 {[%clk 0:04:56.5]}
2... Nf6 {[%clk 0:04:56.5]} 3. Nxe5 {[%clk 0:04:54.2]} 3... d6 {[%clk 0:04:55]}
4. Nf3 {[%clk 0:04:52.8]} 4... Nxe4 {[%clk 0:04:53.1]} 5. Nc3 {[%clk 0:04:49.6]}
5... Nxc3 {[%clk 0:04:51.5]} 6. dxc3 {[%clk 0:04:49.5]} 6... Be6 {[%clk
0:04:49.4]} 7. Bd3 {[%clk 0:04:46.5]} 7... Be7 {[%clk 0:04:47.6]} 8. Bf4 {[%clk
0:04:45.3]} 8... a5 {[%clk 0:04:40.6]} 9. h4 {[%clk 0:04:43.7]} 9... Bg4 {[%clk
0:04:30.7]} 10. Qe2 {[%clk 0:04:38.4]} 10... O-O {[%clk 0:04:17.6]} 11. Bxh7+
{[%clk 0:04:29.1]} 11... Kxh7 {[%clk 0:04:15.8]} 12. Ng5+ {[%clk 0:04:28.4]}
12... Bxg5 {[%clk 0:04:13.6]} 13. hxg5+ {[%clk 0:04:27.8]} 13... Kg8 {[%clk
0:04:10.9]} 14. Qxg4 {[%clk 0:04:27]} 14... Re8+ {[%clk 0:04:08.4]} 15. Be3
{[%clk 0:04:26.3]} 15... Kf8 {[%clk 0:03:55.6]} 16. O-O-O {[%clk 0:04:23.4]}
16... Nc6 {[%clk 0:03:52.4]} 17. g6 {[%clk 0:04:19.3]} 17... Ne5 {[%clk
0:03:44.2]} 18. Qh5 {[%clk 0:03:49.6]} 18... Nxg6 {[%clk 0:03:42.8]} 19. Bg5
{[%clk 0:03:45]} 19... Qd7 {[%clk 0:03:37.5]} 20. Qh8+ {[%clk 0:03:41.4]} 20...
Nxh8 {[%clk 0:03:35.9]} 21. Rxh8# {[%clk 0:03:41.3]} 1-0

[Event "Live Chess"]
[Site "Chess.com"]
[Date "2023.05.21"]
[Round "-"]
[White "MJMykh"]
[Black "wadsy27"]
[Result "0-1"]
[WhiteElo "1101"]
[BlackElo "2568"]
[TimeControl "300"]
[EndTime "1:34:42 PDT"]
[Termination "wadsy27 won by resignation"]

1. e4 {[%clk 0:04:59]} 1... c5 {[%clk 0:04:56.1]} 2. Nf3 {[%clk 0:04:57.8]} 2...
e6 {[%clk 0:04:55.4]} 3. Nc3 {[%clk 0:04:56.5]} 3... Nc6 {[%clk 0:04:54.5]} 4.
Bb5 {[%clk 0:04:55.8]} 4... Nge7 {[%clk 0:04:53.1]} 5. Bxc6 {[%clk 0:04:55.1]}
5... Nxc6 {[%clk 0:04:51.9]} 6. O-O {[%clk 0:04:54.9]} 6... Be7 {[%clk
0:04:49.2]} 7. h3 {[%clk 0:04:54.3]} 7... O-O {[%clk 0:04:48.1]} 8. d3 {[%clk
0:04:53.7]} 8... a6 {[%clk 0:04:46.9]} 9. Bf4 {[%clk 0:04:53.4]} 9... b5 {[%clk
0:04:45.6]} 10. a3 {[%clk 0:04:51.9]} 10... d6 {[%clk 0:04:44.5]} 11. d4 {[%clk
0:04:50.5]} 11... cxd4 {[%clk 0:04:43.1]} 12. Nxd4 {[%clk 0:04:49.9]} 12... Nxd4
{[%clk 0:04:42]} 13. Qxd4 {[%clk 0:04:49.5]} 13... e5 {[%clk 0:04:41.4]} 14.
Bxe5 {[%clk 0:04:47.5]} 14... dxe5 {[%clk 0:04:40.1]} 15. Qxd8 {[%clk
0:04:46.8]} 15... Rxd8 {[%clk 0:04:39]} 16. Nd5 {[%clk 0:04:45.9]} 16... Bf8
{[%clk 0:04:36.9]} 17. Nb6 {[%clk 0:04:44.1]} 17... Rb8 {[%clk 0:04:35.7]} 18.
Nxc8 {[%clk 0:04:43.2]} 18... Rbxc8 {[%clk 0:04:35.6]} 19. c3 {[%clk 0:04:41.8]}
19... Rd2 {[%clk 0:04:34.5]} 20. b4 {[%clk 0:04:39.6]} 20... Rxc3 {[%clk
0:04:33]} 0-1

[Event "Live Chess"]
[Site "Chess.com"]
[Date "2023.05.21"]
[Round "-"]
[White "OSmith06"]
[Black "RichardABates"]
[Result "0-1"]
[WhiteElo "1634"]
[BlackElo "2134"]
[TimeControl "300"]
[EndTime "1:35:14 PDT"]
[Termination "RichardABates won by resignation"]

1. e4 {[%clk 0:04:58.7]} 1... c5 {[%clk 0:04:58.6]} 2. Nf3 {[%clk 0:04:57.7]}
2... d6 {[%clk 0:04:57.4]} 3. d4 {[%clk 0:04:54]} 3... cxd4 {[%clk 0:04:56.3]}
4. Nxd4 {[%clk 0:04:53.9]} 4... Nf6 {[%clk 0:04:55.3]} 5. Nc3 {[%clk 0:04:53.1]}
5... a6 {[%clk 0:04:54.1]} 6. Be3 {[%clk 0:04:52.1]} 6... e5 {[%clk 0:04:52.6]}
7. Nb3 {[%clk 0:04:49.4]} 7... Be6 {[%clk 0:04:50.6]} 8. Qd2 {[%clk 0:04:47.2]}
8... Nbd7 {[%clk 0:04:46.3]} 9. Be2 {[%clk 0:04:44.1]} 9... Be7 {[%clk
0:04:42.5]} 10. O-O {[%clk 0:04:38.8]} 10... O-O {[%clk 0:04:41]} 11. Rad1
{[%clk 0:04:32.4]} 11... Qc7 {[%clk 0:04:38.1]} 12. Bf3 {[%clk 0:04:20]} 12...
Rac8 {[%clk 0:04:33.9]} 13. Rfe1 {[%clk 0:03:58.5]} 13... b5 {[%clk 0:04:31]}
14. Rc1 {[%clk 0:03:48.7]} 14... Nb6 {[%clk 0:04:25.8]} 15. Bxb6 {[%clk
0:03:36.2]} 15... Qxb6 {[%clk 0:04:24.3]} 16. Nd5 {[%clk 0:03:35.7]} 16... Nxd5
{[%clk 0:04:13.1]} 17. exd5 {[%clk 0:03:35.6]} 17... Bf5 {[%clk 0:04:11.8]} 18.
Be4 {[%clk 0:03:29.2]} 18... Bxe4 {[%clk 0:04:08.7]} 19. Rxe4 {[%clk 0:03:29.1]}
19... f5 {[%clk 0:04:07.6]} 20. Ree1 {[%clk 0:03:23.1]} 20... h6 {[%clk
0:04:06.3]} 21. Qe3 {[%clk 0:02:41.6]} 21... Qxe3 {[%clk 0:04:03.4]} 22. fxe3
{[%clk 0:02:41.5]} 22... Bd8 {[%clk 0:03:59.6]} 23. e4 {[%clk 0:02:35]} 23...
Bb6+ {[%clk 0:03:57.6]} 24. Kh1 {[%clk 0:02:31.3]} 24... fxe4 {[%clk 0:03:56.4]}
25. Rxe4 {[%clk 0:02:29.3]} 25... Rxc2 {[%clk 0:03:51.1]} 26. Ree1 {[%clk
0:02:11.8]} 26... Rff2 {[%clk 0:03:41.5]} 27. Rxc2 {[%clk 0:02:06]} 27... Rxc2
{[%clk 0:03:39.8]} 28. Rf1 {[%clk 0:02:05.6]} 28... Rxb2 {[%clk 0:03:37.5]} 29.
h3 {[%clk 0:02:04.5]} 29... Rxa2 {[%clk 0:03:35.5]} 0-1

[Event "Live Chess"]
[Site "Chess.com"]
[Date "2023.05.21"]
[Round "-"]
[White "Tilbs_12"]
[Black "ExIsambard"]
[Result "1-0"]
[WhiteElo "1577"]
[BlackElo "1908"]
[TimeControl "300"]
[EndTime "1:35:18 PDT"]
[Termination "Tilbs_12 won by resignation"]

1. e4 {[%clk 0:04:56.8]} 1... Nc6 {[%clk 0:04:57.3]} 2. d4 {[%clk 0:04:54.1]}
2... d5 {[%clk 0:04:56.9]} 3. exd5 {[%clk 0:04:50.4]} 3... Qxd5 {[%clk
0:04:56.8]} 4. Nc3 {[%clk 0:04:47.3]} 4... Qa5 {[%clk 0:04:55.5]} 5. Bc4 {[%clk
0:04:45.1]} 5... Nf6 {[%clk 0:04:54.8]} 6. Nf3 {[%clk 0:04:43.9]} 6... Bg4
{[%clk 0:04:52.8]} 7. h3 {[%clk 0:04:41.7]} 7... Qh5 {[%clk 0:04:51.3]} 8. Be3
{[%clk 0:04:35.3]} 8... O-O-O {[%clk 0:04:49.6]} 9. Be2 {[%clk 0:04:07.2]} 9...
e5 {[%clk 0:04:45.1]} 10. O-O {[%clk 0:03:56.1]} 10... Bxh3 {[%clk 0:04:43.2]}
11. Nxe5 {[%clk 0:03:47.2]} 11... Qh4 {[%clk 0:04:33.4]} 12. Nxf7 {[%clk
0:03:40.4]} 12... Be6 {[%clk 0:04:10.6]} 13. Nxd8 {[%clk 0:03:36.9]} 13... Kxd8
{[%clk 0:03:50.1]} 14. Bf3 {[%clk 0:03:35.7]} 14... Bd6 {[%clk 0:03:48.5]} 15.
g3 {[%clk 0:03:32]} 15... Qh3 {[%clk 0:03:42.7]} 16. Bg2 {[%clk 0:03:15.2]}
16... Qh5 {[%clk 0:03:35.9]} 17. Qxh5 {[%clk 0:03:13.6]} 17... Nxh5 {[%clk
0:03:35]} 18. d5 {[%clk 0:03:10.6]} 18... Nb4 {[%clk 0:03:19.2]} 19. dxe6 {[%clk
0:03:08.6]} 19... Nxc2 {[%clk 0:03:15.7]} 20. Rad1 {[%clk 0:03:04.6]} 20... Nxe3
{[%clk 0:03:15.2]} 21. fxe3 {[%clk 0:03:03.6]} 21... Ke7 {[%clk 0:03:12.8]} 22.
Nb5 {[%clk 0:02:54.7]} 22... Bc5 {[%clk 0:03:08.6]} 23. Kh2 {[%clk 0:02:41.3]}
23... c6 {[%clk 0:03:03.1]} 24. Nd4 {[%clk 0:02:39.2]} 24... Nf6 {[%clk
0:02:56.9]} 25. a3 {[%clk 0:02:33.6]} 25... a5 {[%clk 0:02:55.4]} 26. Rfe1
{[%clk 0:02:24.8]} 26... h5 {[%clk 0:02:54.1]} 27. Nb3 {[%clk 0:02:18.4]} 27...
h4 {[%clk 0:02:47.5]} 28. Nxc5 {[%clk 0:02:14.3]} 28... hxg3+ {[%clk 0:02:41.7]}
29. Kxg3 {[%clk 0:02:13.3]} 1-0

[Event "Live Chess"]
[Site "Chess.com"]
[Date "2023.05.21"]
[Round "-"]
[White "RoaringKnights"]
[Black "Cimon"]
[Result "0-1"]
[WhiteElo "993"]
[BlackElo "1846"]
[TimeControl "300"]
[EndTime "1:35:44 PDT"]
[Termination "Cimon won by checkmate"]

1. e4 {[%clk 0:04:58.6]} 1... d6 {[%clk 0:04:56.1]} 2. Nf3 {[%clk 0:04:56.1]}
2... Nf6 {[%clk 0:04:54.2]} 3. Nc3 {[%clk 0:04:52.4]} 3... g6 {[%clk 0:04:52.5]}
4. Bc4 {[%clk 0:04:51]} 4... Bg7 {[%clk 0:04:51.1]} 5. d3 {[%clk 0:04:49.9]}
5... O-O {[%clk 0:04:49.7]} 6. Bf4 {[%clk 0:04:48.3]} 6... e5 {[%clk 0:04:45.6]}
7. Bg5 {[%clk 0:04:46.2]} 7... c6 {[%clk 0:04:43.8]} 8. O-O {[%clk 0:04:42.7]}
8... b5 {[%clk 0:04:40.8]} 9. Bb3 {[%clk 0:04:38]} 9... a5 {[%clk 0:04:36.2]}
10. a4 {[%clk 0:04:36.6]} 10... b4 {[%clk 0:04:34.9]} 11. Ne2 {[%clk 0:04:34.6]}
11... h6 {[%clk 0:04:10.6]} 12. Bh4 {[%clk 0:04:30]} 12... g5 {[%clk 0:04:09.3]}
13. Bg3 {[%clk 0:04:25.7]} 13... Nh5 {[%clk 0:04:06.8]} 14. c3 {[%clk
0:04:19.7]} 14... Na6 {[%clk 0:03:59.6]} 15. cxb4 {[%clk 0:04:16.6]} 15... Nxb4
{[%clk 0:03:57.7]} 16. Nc3 {[%clk 0:04:11.7]} 16... Nf4 {[%clk 0:03:52.9]} 17.
Bxf4 {[%clk 0:04:07.8]} 17... exf4 {[%clk 0:03:41.1]} 18. d4 {[%clk 0:04:05.4]}
18... d5 {[%clk 0:03:30.2]} 19. e5 {[%clk 0:04:01.8]} 19... Bf5 {[%clk
0:03:08.7]} 20. Rc1 {[%clk 0:03:55.9]} 20... g4 {[%clk 0:02:48.4]} 21. Nd2
{[%clk 0:03:47.1]} 21... Rb8 {[%clk 0:02:35.7]} 22. f3 {[%clk 0:03:44.2]} 22...
Nd3 {[%clk 0:02:23.4]} 23. Rb1 {[%clk 0:03:19.8]} 23... Qg5 {[%clk 0:01:54.4]}
24. Qe2 {[%clk 0:02:54]} 24... g3 {[%clk 0:01:42.8]} 25. h3 {[%clk 0:02:40.3]}
25... Qh4 {[%clk 0:01:05.2]} 26. Rfd1 {[%clk 0:02:12.9]} 26... Nf2 {[%clk
0:00:57.5]} 27. Rf1 {[%clk 0:02:05.1]} 27... Bxb1 {[%clk 0:00:47.9]} 28. Ncxb1
{[%clk 0:02:00.4]} 28... Rb4 {[%clk 0:00:38.2]} 29. e6 {[%clk 0:01:58]} 29...
fxe6 {[%clk 0:00:29.9]} 30. Qxe6+ {[%clk 0:01:55]} 30... Kh8 {[%clk 0:00:28.4]}
31. Qxc6 {[%clk 0:01:52.9]} 31... Bxd4 {[%clk 0:00:24.4]} 32. Bxd5 {[%clk
0:01:36.9]} 32... Nxh3+ {[%clk 0:00:22.2]} 33. Kh1 {[%clk 0:01:34]} 33... Ng5#
{[%clk 0:00:19.9]} 0-1

[Event "Live Chess"]
[Site "Chess.com"]
[Date "2023.05.21"]
[Round "-"]
[White "JoshMcK"]
[Black "Bot_Boy"]
[Result "1-0"]
[WhiteElo "1531"]
[BlackElo "334"]
[TimeControl "300"]
[EndTime "1:35:44 PDT"]
[Termination "JoshMcK won on time"]

1. e4 {[%clk 0:04:57.8]} 1... Nc6 {[%clk 0:04:58.1]} 2. Nf3 {[%clk 0:04:53.3]}
2... e5 {[%clk 0:04:55.3]} 3. Bb5 {[%clk 0:04:51.3]} 3... d6 {[%clk 0:04:40.3]}
4. d4 {[%clk 0:04:47.9]} 4... Bd7 {[%clk 0:04:27.8]} 5. Bxc6 {[%clk 0:04:41.5]}
5... Bxc6 {[%clk 0:04:21.8]} 6. Nc3 {[%clk 0:04:37.4]} 6... exd4 {[%clk
0:04:15.9]} 7. Nxd4 {[%clk 0:04:34.8]} 7... Bd7 {[%clk 0:04:06.1]} 8. O-O {[%clk
0:04:32.2]} 8... g6 {[%clk 0:03:43.3]} 9. Bf4 {[%clk 0:04:28.1]} 9... g5 {[%clk
0:03:22.8]} 10. Be3 {[%clk 0:04:25.6]} 10... h6 {[%clk 0:03:16.9]} 11. Nf5
{[%clk 0:04:10.5]} 11... Bxf5 {[%clk 0:03:06.1]} 12. exf5 {[%clk 0:04:05.5]}
12... Bg7 {[%clk 0:02:45]} 13. Re1 {[%clk 0:04:01.7]} 13... Be5 {[%clk
0:02:29.6]} 14. Bd4 {[%clk 0:03:54.3]} 14... f6 {[%clk 0:02:23.2]} 15. Nd5
{[%clk 0:03:43.4]} 15... Kd7 {[%clk 0:02:05.6]} 16. Bxe5 {[%clk 0:03:39.7]}
16... fxe5 {[%clk 0:02:01.5]} 17. Qg4 {[%clk 0:03:22.1]} 17... Nf6 {[%clk
0:01:24.5]} 18. Nxf6+ {[%clk 0:03:18.9]} 18... Qxf6 {[%clk 0:01:21.6]} 19. Rad1
{[%clk 0:03:16.9]} 19... Rae8 {[%clk 0:01:12.1]} 20. Qa4+ {[%clk 0:03:04.4]}
20... c6 {[%clk 0:00:50.1]} 21. Qxa7 {[%clk 0:02:59.3]} 21... Qxf5 {[%clk
0:00:48.4]} 22. Qxb7+ {[%clk 0:02:57.2]} 22... Ke6 {[%clk 0:00:37.5]} 23. Qxc6
{[%clk 0:02:55.2]} 23... Rd8 {[%clk 0:00:23.4]} 24. Qc4+ {[%clk 0:02:42.6]}
24... Kf6 {[%clk 0:00:14.7]} 25. Qc6 {[%clk 0:02:32.5]} 25... Rhe8 {[%clk
0:00:05.7]} 26. Rxd6+ {[%clk 0:02:26.7]} 26... Rxd6 {[%clk 0:00:01.9]} 27. Qxd6+
{[%clk 0:02:25.3]} 27... Re6 {[%clk 0:00:01.1]} 28. Qf8+ {[%clk 0:02:20.9]} 1-0

[Event "Live Chess"]
[Site "Chess.com"]
[Date "2023.05.21"]
[Round "-"]
[White "smoggyrabbit"]
[Black "NAZRIZ1977"]
[Result "0-1"]
[WhiteElo "1723"]
[BlackElo "1982"]
[TimeControl "300"]
[EndTime "1:35:47 PDT"]
[Termination "NAZRIZ1977 won by checkmate"]

1. d4 {[%clk 0:04:58.5]} 1... Nf6 {[%clk 0:04:56.4]} 2. Nf3 {[%clk 0:04:57.1]}
2... g6 {[%clk 0:04:55]} 3. e3 {[%clk 0:04:54.1]} 3... Bg7 {[%clk 0:04:53.9]} 4.
Be2 {[%clk 0:04:52.9]} 4... O-O {[%clk 0:04:53.4]} 5. O-O {[%clk 0:04:51.6]}
5... d5 {[%clk 0:04:53.3]} 6. b4 {[%clk 0:04:50.5]} 6... a5 {[%clk 0:04:51.6]}
7. b5 {[%clk 0:04:49]} 7... c5 {[%clk 0:04:49.3]} 8. bxc6 {[%clk 0:04:48]} 8...
bxc6 {[%clk 0:04:47.8]} 9. a4 {[%clk 0:04:47]} 9... c5 {[%clk 0:04:46.9]} 10.
Ba3 {[%clk 0:04:35]} 10... Nfd7 {[%clk 0:04:41.3]} 11. Nbd2 {[%clk 0:04:27.5]}
11... Re8 {[%clk 0:04:31.5]} 12. Nb3 {[%clk 0:04:23.6]} 12... cxd4 {[%clk
0:04:19.4]} 13. exd4 {[%clk 0:04:20.4]} 13... Bb7 {[%clk 0:04:15.9]} 14. Rb1
{[%clk 0:04:11.1]} 14... e5 {[%clk 0:03:59.6]} 15. Nc5 {[%clk 0:03:48.5]} 15...
Nxc5 {[%clk 0:03:52]} 16. Bxc5 {[%clk 0:03:47]} 16... Bc6 {[%clk 0:03:51.2]} 17.
dxe5 {[%clk 0:03:34.8]} 17... Nd7 {[%clk 0:03:35.9]} 18. Nd4 {[%clk 0:02:52.2]}
18... Bxa4 {[%clk 0:03:23.9]} 19. Bd6 {[%clk 0:02:39.6]} 19... Nxe5 {[%clk
0:03:17.1]} 20. Bxe5 {[%clk 0:02:31.1]} 20... Bxe5 {[%clk 0:02:55.5]} 21. Bb5
{[%clk 0:02:24.6]} 21... Bxb5 {[%clk 0:02:49.2]} 22. Rxb5 {[%clk 0:02:13.9]}
22... Qd7 {[%clk 0:02:36.6]} 23. Rb1 {[%clk 0:01:47.1]} 23... a4 {[%clk
0:02:30]} 24. Nf3 {[%clk 0:01:33.7]} 24... Bg7 {[%clk 0:02:26.9]} 25. c4 {[%clk
0:01:13.8]} 25... d4 {[%clk 0:02:23.8]} 26. Qd3 {[%clk 0:00:59.7]} 26... a3
{[%clk 0:02:16.7]} 27. Ra1 {[%clk 0:00:45.3]} 27... Qd6 {[%clk 0:01:57.8]} 28.
Rfc1 {[%clk 0:00:33.1]} 28... Qc5 {[%clk 0:01:56.5]} 29. Rd1 {[%clk 0:00:30.1]}
29... Rec8 {[%clk 0:01:35.9]} 30. Nxd4 {[%clk 0:00:25.8]} 30... Qxc4 {[%clk
0:01:34.1]} 31. Rac1 {[%clk 0:00:11.8]} 31... Qxd3 {[%clk 0:01:30.8]} 32. Rxc8+
{[%clk 0:00:09.3]} 32... Rxc8 {[%clk 0:01:29.7]} 33. Rxd3 {[%clk 0:00:08.5]}
33... Rc1+ {[%clk 0:01:27.3]} 34. Rd1 {[%clk 0:00:02.4]} 34... Rxd1# {[%clk
0:01:26.1]} 0-1

[Event "Live Chess"]
[Site "Chess.com"]
[Date "2023.05.21"]
[Round "-"]
[White "Missedidea"]
[Black "LiamClery2020"]
[Result "0-1"]
[WhiteElo "1837"]
[BlackElo "2026"]
[TimeControl "300"]
[EndTime "1:35:56 PDT"]
[Termination "LiamClery2020 won on time"]

1. d4 {[%clk 0:04:58.5]} 1... Nf6 {[%clk 0:04:59.4]} 2. c4 {[%clk 0:04:56.7]}
2... g6 {[%clk 0:04:58.1]} 3. Nc3 {[%clk 0:04:55.2]} 3... d5 {[%clk 0:04:56.7]}
4. cxd5 {[%clk 0:04:51.6]} 4... Nxd5 {[%clk 0:04:56.6]} 5. e4 {[%clk 0:04:50.4]}
5... Nxc3 {[%clk 0:04:55.7]} 6. bxc3 {[%clk 0:04:49.5]} 6... Bg7 {[%clk
0:04:54.9]} 7. Bc4 {[%clk 0:04:48]} 7... c5 {[%clk 0:04:54.2]} 8. Ne2 {[%clk
0:04:46.8]} 8... O-O {[%clk 0:04:53.1]} 9. O-O {[%clk 0:04:44.6]} 9... cxd4
{[%clk 0:04:51.5]} 10. cxd4 {[%clk 0:04:42.9]} 10... Nc6 {[%clk 0:04:51.4]} 11.
Be3 {[%clk 0:04:41.2]} 11... e6 {[%clk 0:04:44.9]} 12. f4 {[%clk 0:04:23.9]}
12... Qa5 {[%clk 0:04:41.8]} 13. Bd2 {[%clk 0:04:04.4]} 13... Qh5 {[%clk
0:04:32.5]} 14. Be3 {[%clk 0:03:48.9]} 14... b5 {[%clk 0:04:29.7]} 15. Bb3
{[%clk 0:03:41.9]} 15... Bb7 {[%clk 0:04:28.6]} 16. Qd2 {[%clk 0:03:32.9]} 16...
Rad8 {[%clk 0:04:26.8]} 17. Ng3 {[%clk 0:03:23.9]} 17... Qg4 {[%clk 0:04:23.8]}
18. Ne2 {[%clk 0:03:03.5]} 18... a5 {[%clk 0:04:15.3]} 19. h3 {[%clk 0:02:59.4]}
19... Qh4 {[%clk 0:04:13.6]} 20. Bf2 {[%clk 0:02:54.2]} 20... Qe7 {[%clk
0:04:09.4]} 21. Rad1 {[%clk 0:02:51]} 21... a4 {[%clk 0:04:07.6]} 22. Bc2 {[%clk
0:02:48.2]} 22... Nb4 {[%clk 0:04:05.4]} 23. Bb1 {[%clk 0:02:46.1]} 23... Rd7
{[%clk 0:03:59.5]} 24. Qe3 {[%clk 0:02:24.5]} 24... f5 {[%clk 0:03:48.7]} 25. e5
{[%clk 0:02:14.3]} 25... Nd5 {[%clk 0:03:41.5]} 26. Qg3 {[%clk 0:02:12.7]} 26...
Bh6 {[%clk 0:03:32.1]} 27. h4 {[%clk 0:02:10.5]} 27... Kh8 {[%clk 0:03:29.3]}
28. Qh2 {[%clk 0:02:02.3]} 28... Ba6 {[%clk 0:03:14.2]} 29. Rfe1 {[%clk
0:01:53.8]} 29... b4 {[%clk 0:03:06.4]} 30. h5 {[%clk 0:01:52.2]} 30... Bxe2
{[%clk 0:03:04.3]} 31. Rxe2 {[%clk 0:01:48.7]} 31... Nc3 {[%clk 0:03:01.9]} 32.
Red2 {[%clk 0:01:41.2]} 32... Nxd1 {[%clk 0:03:00.3]} 33. Rxd1 {[%clk
0:01:39.9]} 33... g5 {[%clk 0:02:58.5]} 34. Be3 {[%clk 0:01:29.2]} 34... gxf4
{[%clk 0:02:55.9]} 35. Bxf4 {[%clk 0:01:27.7]} 35... Bxf4 {[%clk 0:02:55]} 36.
Qxf4 {[%clk 0:01:26.4]} 36... Rg8 {[%clk 0:02:54.9]} 37. d5 {[%clk 0:01:24.4]}
37... Qc5+ {[%clk 0:02:52.6]} 38. Kh1 {[%clk 0:01:20.9]} 38... Rxd5 {[%clk
0:02:51.1]} 39. Rxd5 {[%clk 0:01:15.6]} 39... Qxd5 {[%clk 0:02:48]} 40. Qxb4
{[%clk 0:01:12.1]} 40... Qd1+ {[%clk 0:02:42.3]} 41. Kh2 {[%clk 0:01:10]} 41...
Qxh5+ {[%clk 0:02:41.6]} 42. Kg1 {[%clk 0:01:08.2]} 42... Qg4 {[%clk 0:02:39.4]}
43. Qb2 {[%clk 0:01:04.8]} 43... Rd8 {[%clk 0:02:35]} 44. Qc2 {[%clk 0:00:57.9]}
44... Qd4+ {[%clk 0:02:28.1]} 45. Kh1 {[%clk 0:00:54.9]} 45... Qxe5 {[%clk
0:02:27.5]} 46. Qxa4 {[%clk 0:00:47.5]} 46... Qe1+ {[%clk 0:02:23.1]} 47. Kh2
{[%clk 0:00:45.8]} 47... Qxb1 {[%clk 0:02:22.3]} 48. Qa5 {[%clk 0:00:40.8]}
48... Qd3 {[%clk 0:02:18.7]} 49. Qe5+ {[%clk 0:00:36.9]} 49... Kg8 {[%clk
0:02:17.8]} 50. Qxe6+ {[%clk 0:00:35]} 50... Kg7 {[%clk 0:02:17.2]} 51. Qe7+
{[%clk 0:00:32.8]} 51... Kg6 {[%clk 0:02:16.3]} 52. Qe6+ {[%clk 0:00:31.7]}
52... Kg5 {[%clk 0:02:15.3]} 53. Qe7+ {[%clk 0:00:29.7]} 53... Kf4 {[%clk
0:02:11.6]} 54. Qh4+ {[%clk 0:00:25.6]} 54... Ke3 {[%clk 0:02:10]} 55. Qg3+
{[%clk 0:00:22]} 55... Kd2 {[%clk 0:02:09.1]} 56. Qf2+ {[%clk 0:00:20]} 56...
Kc3 {[%clk 0:02:06.1]} 57. Qc5+ {[%clk 0:00:19]} 57... Qc4 {[%clk 0:02:05.6]}
58. Qe3+ {[%clk 0:00:17.3]} 58... Rd3 {[%clk 0:02:04.9]} 59. Qe5+ {[%clk
0:00:15.8]} 59... Kc2 {[%clk 0:02:02.5]} 60. Qe2+ {[%clk 0:00:13.5]} 60... Kc3
{[%clk 0:02:00.5]} 61. Qe1+ {[%clk 0:00:12.4]} 61... Kd4 {[%clk 0:02:00]} 62.
Qf2+ {[%clk 0:00:10.8]} 62... Kd5 {[%clk 0:01:58.3]} 63. Qxf5+ {[%clk
0:00:08.9]} 63... Kc6 {[%clk 0:01:57.8]} 64. Qf6+ {[%clk 0:00:07.6]} 64... Kb5
{[%clk 0:01:57.1]} 65. Qf5+ {[%clk 0:00:03.6]} 65... Rd5 {[%clk 0:01:56.4]} 0-1